bitfinex/quotes_SOLUSD_20251019
["timestamp","ask_amount","ask_price","bid_price","bid_amount"]
[1760875585122,0.1,189.65,189.57,10.87647521]
[1760875585411,0.1,189.65,189.59,10.87647521]
[1760875585820,0.1,189.65,189.61,10.87647521]
[1760875586013,0.1,189.65,189.61,16.15025094]
[1760875586214,0.1,189.65,189.62,0.66]
[1760875586602,0.1,189.65,189.63,0.66]
[1760875586811,0.1,189.65,189.64,0.66]
[1760875589340,0.1,189.65,189.61,10.87647521]
[1760875589521,0.1,189.65,189.63,0.66]
[1760875590301,0.1,189.65,189.64,0.66]
[1760875591630,0.1,189.65,189.62,0.66]
[1760875591808,0.1,189.65,189.63,0.66]
[1760875592008,0.1,189.65,189.63,5.93340598]
[1760875592227,0.1,189.65,189.64,0.66]
[1760875593327,0.1,189.65,189.64,5.93314912]
[1760875594714,0.1,189.65,189.64,16.80962433]
[1760875595121,0.1,189.65,189.64,11.53647521]
[1760875595722,0.1,189.65,189.64,16.80962433]
[1760875597512,0.1,189.65,189.64,11.53647521]
[1760875597717,0.1,189.65,189.62,10.87647521]
[1760875598230,0.1,189.65,189.62,11.53647521]
[1760875598537,0.1,189.65,189.63,0.66]
[1760875598738,0.1,189.65,189.62,10.87647521]
[1760875598939,0.1,189.65,189.62,11.53647521]
[1760875600521,0.1,189.65,189.62,10.87647521]
[1760875600831,0.1,189.65,189.63,0.66]
[1760875601026,0.1,189.65,189.64,0.66]
[1760875604623,0.1,189.65,189.64,11.53647521]
[1760875605030,0.1,189.65,189.64,11.56647521]
[1760875605230,0.1,189.65,189.64,16.83962433]
[1760875606124,0.1,189.65,189.64,78.23962433]
[1760875608030,0.1,189.65,189.64,72.27647521]
[1760875608250,0.1,189.65,189.64,72.96647521]
[1760875608543,0.1,189.65,189.64,72.27647521]
[1760875608754,0.68,189.65,189.6,77.55050067]
[1760875608939,0.68,189.65,189.61,10.87647521]
[1760875609137,0.1,189.65,189.62,0.69]
[1760875609919,5.3729061,189.65,189.6,26.78]
[1760875610241,0.58,189.64,189.57,5.9648347]
[1760875610638,1.2391784,189.63,189.56,16.15183005]
[1760875610840,0.6591784,189.63,189.56,11.56647521]
[1760875611146,23.46,189.62,189.56,11.56647521]
[1760875611351,22.88,189.62,189.57,0.69]
[1760875611549,5.3729061,189.65,189.57,0.69]
[1760875611740,28.2529061,189.65,189.57,0.69]
[1760875611945,0.65914364,189.64,189.58,5.27481801]
[1760875612250,0.65914364,189.64,189.59,0.69]
[1760875612445,0.65914364,189.64,189.6,0.69]
[1760875612636,0.58,189.63,189.57,0.69]
[1760875614052,5.2737053,189.62,189.57,0.69]
[1760875614350,29.39291846,189.62,189.57,0.69]
[1760875614942,0.58,189.61,189.55,11.56647521]
[1760875616050,5.85403158,189.61,189.55,16.84199813]
[1760875616255,5.85403158,189.61,189.56,0.69]
[1760875616468,28.81294041,189.62,189.57,0.69]
[1760875616631,28.81294041,189.62,189.58,0.69]
[1760875617332,28.81294041,189.62,189.55,0.69]
[1760875617333,0.58,189.61,189.55,0.69]
[1760875617557,0.6592827,189.6,189.53,16.84265543]
[1760875617748,0.58,189.59,189.53,78.24265543]
[1760875617938,0.58,189.59,189.53,16.84265543]
[1760875618144,5.85454458,189.59,189.53,16.15265543]
[1760875618345,5.85454458,189.59,189.54,0.69]
[1760875618539,5.93386205,189.59,189.55,0.69]
[1760875619462,5.2742616,189.6,189.55,0.69]
[1760875619765,0.65931747,189.59,189.55,0.69]
[1760875620464,0.65931747,189.59,189.54,5.27589263]
[1760875620638,0.65931747,189.59,189.55,0.69]
[1760875620838,0.65931747,189.59,189.56,0.69]
[1760875621139,0.75910888,189.65,189.57,0.69]
[1760875621355,0.1,189.65,189.58,10.87647521]
[1760875621537,0.1,189.65,189.57,0.69]
[1760875621538,0.65914364,189.64,189.59,0.69]
[1760875622352,0.75910888,189.65,189.59,0.69]
[1760875622957,0.75910888,189.65,189.59,5.96426981]
[1760875623159,0.1,189.65,189.6,11.56647521]
[1760875623361,0.1,189.65,189.62,10.87647521]
[1760875623740,0.1,189.65,189.63,0.69]
[1760875624568,0.1,189.65,189.64,5.27314912]
[1760875624737,0.1,189.65,189.62,5.27346867]
[1760875624945,0.1,189.65,189.63,10.87647521]
[1760875625145,0.1,189.65,189.63,11.56647521]
[1760875625357,0.1,189.65,189.64,0.69]
[1760875625762,0.1,189.65,189.62,5.27346867]
[1760875625940,0.1,189.65,189.64,0.69]
[1760875632675,0.1,189.65,189.61,27.46]
[1760875632969,5.95298508,189.65,189.59,11.53647521]
[1760875633848,0.65914364,189.64,189.59,10.87647521]
[1760875634044,0.1,189.65,189.6,0.72]
[1760875634268,0.1,189.65,189.61,37.67647521]
[1760875634475,0.1,189.65,189.63,10.87647521]
[1760875634849,0.1,189.65,189.64,16.86962433]
[1760875635159,0.1,189.65,189.64,11.59647521]
[1760875637176,0.1,189.65,189.64,16.86962433]
[1760875639878,0.1,189.65,189.64,11.59647521]
[1760875645778,0.1,189.65,189.64,16.86962433]
[1760875645987,0.1,189.65,189.64,43.64962433]
[1760875651072,0.1,189.65,189.64,42.92962433]
[1760875651370,0.1,189.65,189.64,43.64962433]
[1760875655400,0.1,189.65,189.49,25.0]
[1760875655697,0.1,189.65,189.58,0.72]
[1760875655909,0.1,189.65,189.59,26.78]
[1760875656092,6.03204627,189.65,189.59,27.5]
[1760875656294,6.03204627,189.65,189.59,26.78]
[1760875656885,22.88,189.62,189.55,0.72]
[1760875657092,0.65924792,189.61,189.55,0.72]
[1760875657285,5.2742616,189.6,189.55,0.72]
[1760875657510,0.65924792,189.61,189.55,5.99558715]
[1760875657886,5.93323914,189.61,189.55,5.99558715]
[1760875658381,5.93323914,189.61,189.55,0.72]
[1760875658598,5.93323914,189.61,189.55,10.87647521]
[1760875658908,22.88,189.58,189.53,26.78]
[1760875659200,28.15492148,189.58,189.53,26.78]
[1760875659898,28.15492148,189.58,189.53,27.5]
[1760875660283,22.88,189.58,189.54,11.59647521]
[1760875660501,13.18310935,189.64,189.55,0.72]
[1760875660502,22.88,189.61,189.55,0.72]
[1760875660706,28.1539836,189.61,189.55,0.72]
[1760875660917,0.6592827,189.6,189.55,0.72]
[1760875661422,28.1539836,189.61,189.55,0.72]
[1760875662115,0.6592827,189.6,189.53,32.77620405]
[1760875662306,0.6592827,189.6,189.53,27.5]
[1760875662612,0.6592827,189.6,189.53,26.78]
[1760875663014,0.6592827,189.6,189.52,0.72]
[1760875663393,22.88,189.58,189.52,0.72]
[1760875663596,0.65938703,189.57,189.52,0.72]
[1760875664206,0.65938703,189.57,189.53,0.66]
[1760875665205,22.88,189.55,189.54,0.66]
[1760875666112,5.93450636,189.57,189.52,23.54]
[1760875666414,5.27481222,189.59,189.53,0.66]
[1760875666601,0.6592827,189.6,189.54,10.87647521]
[1760875666790,5.2737053,189.62,189.54,11.53647521]
[1760875666994,0.65924792,189.61,189.55,0.66]
[1760875667217,5.2742616,189.6,189.55,0.66]
[1760875667516,0.65931747,189.59,189.53,0.66]
[1760875668512,5.27481801,189.58,189.53,0.66]
[1760875668820,0.65938703,189.57,189.53,0.66]
[1760875669519,28.81471555,189.57,189.53,0.66]
[1760875670307,28.81471555,189.57,189.51,11.53647521]
[1760875671117,22.88,189.57,189.52,0.66]
[1760875671500,22.88,189.57,189.53,10.87647521]
[1760875671810,22.88,189.55,189.54,0.66]
[1760875672397,5.2751472,189.57,189.54,0.66]
[1760875672799,28.15482514,189.58,189.55,0.66]
[1760875677635,28.15482514,189.58,189.53,0.66]
[1760875677931,28.15482514,189.58,189.54,0.66]
[1760875678112,0.65938703,189.57,189.52,61.4]
[1760875678311,0.65938703,189.57,189.53,0.66]
[1760875679521,22.88,189.56,189.53,0.66]
[1760875679924,22.88,189.56,189.52,61.4]
[1760875680328,22.88,189.54,189.48,10.87647521]
[1760875680535,22.88,189.54,189.47,61.4]
[1760875680536,22.88,189.54,189.49,0.66]
[1760875680743,22.88,189.54,189.5,0.66]
[1760875681041,18.46304918,189.57,189.5,0.66]
[1760875681042,22.88,189.56,189.51,10.87647521]
[1760875681247,22.88,189.56,189.52,0.66]
[1760875681422,28.81451849,189.57,189.52,0.66]
[1760875681622,28.81451849,189.57,189.53,0.66]
[1760875681831,42.00225916,189.57,189.52,0.66]
[1760875684024,42.00225916,189.57,189.5,0.66]
[1760875684628,42.00225916,189.57,189.48,11.53647521]
[1760875685542,26.8,189.56,189.47,26.8]
[1760875685721,22.88,189.54,189.46,0.66]
[1760875685926,0.65952619,189.53,189.46,0.66]
[1760875686129,22.88,189.49,189.46,0.66]
[1760875686329,22.88,189.49,189.44,0.86]
[1760875686532,0.65970023,189.48,189.44,0.86]
[1760875687230,22.88,189.49,189.44,0.86]
[1760875687428,22.88,189.49,189.45,0.66]
[1760875687632,5.2759312,189.54,189.46,10.87647521]
[1760875687863,22.88,189.51,189.47,0.66]
[1760875688366,5.2759312,189.54,189.48,10.87647521]
[1760875688655,28.1559312,189.54,189.49,0.66]
[1760875688949,28.1559312,189.54,189.5,0.66]
[1760875689247,0.6594566,189.55,189.48,5.27759876]
[1760875689551,0.65931747,189.59,189.51,0.66]
[1760875689742,22.88,189.57,189.52,10.87647521]
[1760875689926,22.88,189.57,189.53,0.66]
[1760875690326,0.65931747,189.59,189.54,0.67]
[1760875690532,22.88,189.57,189.54,0.67]
[1760875690941,5.27499125,189.58,189.54,0.67]
[1760875691443,5.27499125,189.58,189.55,0.67]
[1760875691834,0.6591784,189.63,189.56,23.55]
[1760875692143,0.1,189.65,189.57,34.42647521]
[1760875692624,0.1,189.65,189.59,10.87647521]
[1760875692820,0.75910888,189.65,189.59,10.87647521]
[1760875693062,0.75910888,189.65,189.6,0.67]
[1760875693345,0.75910888,189.65,189.57,22.88]
[1760875693346,6.0320855,189.65,189.57,23.55]
[1760875693647,6.0320855,189.65,189.55,0.67]
[1760875694036,19.21426319,189.65,189.56,22.88]
[1760875694341,22.88,189.62,189.53,26.8]
[1760875694536,0.65924792,189.61,189.54,0.65]
[1760875695040,5.2742616,189.6,189.54,0.65]
[1760875695228,0.65931747,189.59,189.54,0.65]
[1760875695928,22.88,189.55,189.43,10.87647521]
[1760875696128,0.6594914,189.54,189.43,11.52647521]
[1760875696350,22.88,189.5,189.43,11.52647521]
[1760875696549,0.65966541,189.49,189.41,0.65]
[1760875697137,5.27760185,189.48,189.41,0.65]
[1760875697349,22.88,189.45,189.38,0.65]
[1760875699252,28.15843758,189.45,189.38,0.65]
[1760875700451,0.65973505,189.47,189.36,0.2]
[1760875700754,0.65973505,189.47,189.42,0.65]
[1760875701055,22.88,189.45,189.42,0.65]
[1760875701350,5.2783823,189.46,189.42,0.65]
[1760875701541,0.65980469,189.45,189.42,0.65]
[1760875702461,5.2783823,189.46,189.42,0.65]
[1760875702763,0.65980469,189.45,189.42,0.65]
[1760875703453,0.65980469,189.45,189.39,0.85]
[1760875703657,0.65980469,189.45,189.4,0.65]
[1760875704564,5.93824227,189.45,189.4,0.65]
[1760875706542,5.93824227,189.45,189.39,0.2]
[1760875706752,5.93824227,189.45,189.39,0.85]
[1760875707567,5.93824227,189.45,189.4,0.65]
[1760875708066,28.81824227,189.45,189.4,0.65]
[1760875709135,28.81824227,189.45,189.39,0.2]
[1760875709341,55.71824227,189.45,189.39,0.85]
[1760875710554,55.71824227,189.45,189.39,0.2]
[1760875710759,55.71824227,189.45,189.4,0.65]
[1760875713161,55.71824227,189.45,189.39,0.2]
[1760875713350,32.83824227,189.45,189.39,0.2]
[1760875713552,32.83824227,189.45,189.39,0.85]
[1760875714358,32.83824227,189.45,189.4,0.65]
[1760875716269,32.83824227,189.45,189.39,0.2]
[1760875716565,32.83824227,189.45,189.39,0.85]
[1760875717062,32.83824227,189.45,189.39,0.2]
[1760875717063,22.88,189.42,189.39,0.2]
[1760875717267,27.53994403,189.41,189.39,0.2]
[1760875717445,26.88,189.4,189.39,0.2]
[1760875718064,32.15983104,189.4,189.39,0.2]
[1760875720470,32.15983104,189.4,189.39,0.85]
[1760875723875,32.15983104,189.4,189.39,0.2]
[1760875726167,32.13983104,189.4,189.39,0.87]
[1760875726561,5.27983104,189.4,189.39,0.87]
[1760875727169,5.27983104,189.4,189.39,0.2]
[1760875727678,32.15983104,189.4,189.39,0.2]
[1760875728073,22.88,189.37,189.36,0.2]
[1760875728272,49.76,189.37,189.36,0.2]
[1760875729491,55.04066747,189.37,189.36,0.87]
[1760875729684,55.04066747,189.37,189.36,0.2]
[1760875733992,55.04066747,189.37,189.36,0.87]
[1760875735390,55.04066747,189.37,189.36,0.2]
[1760875737398,55.04066747,189.37,189.36,1e-08]
[1760875738196,55.7007509,189.37,189.36,1e-08]
[1760875740177,28.8207509,189.37,189.36,0.67000001]
[1760875740403,55.02066747,189.37,189.36,1e-08]
[1760875741489,28.16066747,189.37,189.36,0.67000001]
[1760875741686,55.02066747,189.37,189.36,0.67000001]
[1760875742018,55.02066747,189.37,189.36,1e-08]
[1760875743403,68.22233616,189.37,189.34,1e-08]
[1760875743710,5.28122524,189.35,189.34,1e-08]
[1760875744304,5.28122524,189.35,189.34,0.67000001]
[1760875744513,5.28122524,189.35,189.34,1e-08]
[1760875744698,5.28122524,189.35,189.34,0.67000001]
[1760875745906,4.56122524,189.35,189.34,0.67000001]
[1760875746117,0.66011829,189.36,189.34,0.67000001]
[1760875746301,28.16038863,189.38,189.34,0.67000001]
[1760875746604,0.66008343,189.37,189.34,0.67000001]
[1760875747507,5.28094634,189.36,189.34,0.67000001]
[1760875747693,5.28094634,189.36,189.35,0.67]
[1760875748905,5.28094634,189.36,189.34,1e-08]
[1760875749093,5.28094634,189.36,189.34,0.67000001]
[1760875749694,0.66015315,189.35,189.34,1e-08]
[1760875750510,27.52015315,189.35,189.34,1e-08]
[1760875751696,32.80137839,189.35,189.34,1e-08]
[1760875755217,55.68137839,189.35,189.34,1e-08]
[1760875757828,44.3878536,189.35,189.34,1e-08]
[1760875758208,44.3878536,189.35,189.33,1e-08]
[1760875758400,10.87647521,189.34,189.33,1e-08]
[1760875758806,22.88,189.31,189.27,1.115034]
[1760875759007,22.88,189.28,189.27,1.115034]
[1760875759821,28.82357565,189.28,189.27,1.115034]
[1760875762906,28.82357565,189.28,189.27,1.825034]
[1760875763101,0.6603624,189.29,189.27,1.825034]
[1760875763305,0.6603624,189.29,189.28,0.71]
[1760875763503,5.94326165,189.29,189.28,0.71]
[1760875764940,5.94326165,189.29,189.27,1.115034]
[1760875765925,5.94326165,189.29,189.28,0.71]
[1760875766814,5.94326165,189.29,189.27,1.115034]
[1760875767021,5.94326165,189.29,189.27,1.825034]
[1760875767614,5.94326165,189.29,189.27,1.115034]
[1760875767805,5.94326165,189.29,189.28,0.71]
[1760875769556,0.6603624,189.29,189.28,0.71]
[1760875769735,0.66008343,189.37,189.28,0.71]
[1760875769929,0.66008343,189.37,189.29,10.87647521]
[1760875770140,0.66008343,189.37,189.3,0.71]
[1760875770731,22.88,189.35,189.3,0.71]
[1760875771030,0.66008343,189.37,189.3,5.9926062]
[1760875771330,5.94044649,189.38,189.31,11.58647521]
[1760875771525,5.94044649,189.38,189.32,0.71]
[1760875773452,19.14141808,189.38,189.32,0.71]
[1760875773930,19.85141808,189.38,189.32,0.71]
[1760875774316,42.73141808,189.38,189.32,0.71]
[1760875775531,69.63141808,189.38,189.32,0.71]
[1760875776724,5.28150417,189.34,189.32,0.71]
[1760875776925,0.66022289,189.33,189.32,0.71]
[1760875777923,5.94200601,189.33,189.32,0.71]
[1760875778341,5.28150458,189.34,189.32,0.71]
[1760875778540,5.28150458,189.34,189.33,0.71]
[1760875779233,26.9,189.38,189.33,0.71]
[1760875779431,0.66008343,189.37,189.33,0.71]
[1760875780141,5.94078162,189.37,189.33,0.71]
[1760875781158,5.94078162,189.37,189.34,0.71]
[1760875784247,0.68,189.36,189.3,0.69]
[1760875784422,0.66015315,189.35,189.3,0.69]
[1760875784627,0.66015315,189.35,189.3,62.09]
[1760875784842,0.66015315,189.35,189.31,0.69]
[1760875785350,24.22018802,189.34,189.3,61.4]
[1760875785524,24.22018802,189.34,189.29,62.09]
[1760875785845,23.54018802,189.34,189.3,0.69]
[1760875786344,5.28178312,189.33,189.3,0.69]
[1760875786553,0.66025776,189.32,189.3,0.69]
[1760875787252,5.28178312,189.33,189.29,61.4]
[1760875787253,0.66022289,189.33,189.31,0.69]
[1760875787426,27.54,189.37,189.32,0.69]
[1760875787427,5.94133177,189.36,189.32,0.69]
[1760875788845,5.94133177,189.36,189.33,0.69]
[1760875789557,5.94133177,189.36,189.31,0.69]
[1760875789761,5.94133177,189.36,189.32,0.69]
[1760875791965,5.94133177,189.36,189.3,0.69]
[1760875791966,19.82369763,189.36,189.3,0.69]
[1760875796382,19.82369763,189.36,189.27,12.68150921]
[1760875796542,0.68,189.35,189.28,0.69]
[1760875796744,22.88,189.33,189.28,0.69]
[1760875797067,1.34025776,189.32,189.28,0.69]
[1760875797572,5.28234113,189.31,189.28,0.69]
[1760875799254,0.66022289,189.33,189.28,0.69]
[1760875799560,5.28150417,189.34,189.28,5.97316508]
[1760875799754,5.28150417,189.34,189.29,0.69]
[1760875800459,5.28150417,189.34,189.28,5.28316508]
[1760875800665,5.28150417,189.34,189.29,0.69]
[1760875800964,1.34022289,189.33,189.29,23.57]
[1760875801146,0.66022289,189.33,189.29,22.88]
[1760875801346,1.34022289,189.33,189.29,22.88]
[1760875801541,5.28234113,189.31,189.27,1.115034]
[1760875801747,1.34032752,189.3,189.27,1.115034]
[1760875802553,0.68,189.29,189.27,1.115034]
[1760875802752,0.66039729,189.28,189.27,1.115034]
[1760875802976,1.34039729,189.28,189.27,1.115034]
[1760875803555,6.62357565,189.28,189.27,1.115034]
[1760875805277,5.94357565,189.28,189.27,1.115034]
[1760875807360,6.62357565,189.28,189.27,1.115034]
[1760875808880,5.94357565,189.28,189.27,1.115034]
[1760875810481,6.65357565,189.28,189.27,1.115034]
[1760875814201,5.94357565,189.28,189.27,1.115034]
[1760875815099,6.64357565,189.28,189.27,1.115034]
[1760875815499,5.94357565,189.28,189.27,1.115034]
[1760875816602,22.88,189.27,189.26,0.2]
[1760875817791,28.16345749,189.27,189.26,0.2]
[1760875819494,28.86345749,189.27,189.26,0.2]
[1760875819899,28.16345749,189.27,189.26,0.2]
[1760875820086,55.70345749,189.27,189.26,1e-08]
[1760875820291,28.16345749,189.27,189.26,1e-08]
[1760875820490,55.00345749,189.27,189.26,1e-08]
[1760875822501,10.87647521,189.3,189.26,1e-08]
[1760875822502,0.66025776,189.32,189.26,0.67000001]
[1760875822693,5.28150417,189.34,189.26,0.67000001]
[1760875822913,0.66022289,189.33,189.26,0.67000001]
[1760875823223,5.94169219,189.34,189.27,10.87647521]
[1760875823520,0.66022289,189.33,189.28,0.67]
[1760875823710,0.66022289,189.33,189.29,0.67]
[1760875823907,0.66022289,189.33,189.26,1e-08]
[1760875824216,5.28206211,189.32,189.29,0.67]
[1760875824395,0.66029264,189.31,189.29,0.67]
[1760875825205,5.28262017,189.3,189.29,0.67]
[1760875826015,5.40262017,189.3,189.26,1e-08]
[1760875826205,0.6603624,189.29,189.27,0.67]
[1760875826405,0.6603624,189.29,189.28,0.67]
[1760875826604,5.28262017,189.3,189.28,0.67]
[1760875827015,5.94265464,189.31,189.28,0.67]
[1760875827216,5.94225013,189.33,189.28,0.67]
[1760875827406,5.28202724,189.33,189.28,0.67]
[1760875828318,0.66015315,189.35,189.28,5.95309061]
[1760875828629,0.66015315,189.35,189.29,0.67]
[1760875828910,5.94143782,189.35,189.29,0.67]
[1760875829121,19.14450093,189.35,189.29,0.67]
[1760875830416,5.94143782,189.35,189.29,0.67]
[1760875831308,5.94143782,189.35,189.29,5.95288031]
[1760875831507,5.94143782,189.35,189.3,0.67]
[1760875832021,0.66015315,189.35,189.3,0.67]
[1760875832235,28.16087646,189.37,189.3,0.67]
[1760875832236,23.54008343,189.37,189.3,0.67]
[1760875832398,28.82082634,189.37,189.3,0.67]
[1760875832717,42.72249503,189.37,189.3,0.67]
[1760875835319,42.72249503,189.37,189.28,62.07]
[1760875835621,0.7,189.36,189.29,0.67]
[1760875835818,0.66015315,189.35,189.29,0.67]
[1760875836325,0.66011829,189.36,189.3,10.87647521]
[1760875836505,0.66011829,189.36,189.31,0.67]
[1760875837136,5.28122524,189.35,189.32,0.67]
[1760875837418,5.28122524,189.35,189.33,0.67]
[1760875837606,0.66018802,189.34,189.28,61.4]
[1760875837812,0.66018802,189.34,189.29,0.67]
[1760875838008,0.66018802,189.34,189.3,0.67]
[1760875839031,1.36018802,189.34,189.3,0.67]
[1760875839202,5.28178312,189.33,189.3,0.67]
[1760875839404,0.66025776,189.32,189.28,61.4]
[1760875839726,0.66025776,189.32,189.29,0.67]
[1760875840218,5.94200601,189.33,189.28,61.4]
[1760875840409,5.94200601,189.33,189.3,0.67]
[1760875841322,5.28178312,189.33,189.3,0.67]
[1760875841505,0.66025776,189.32,189.3,0.67]
[1760875841713,5.28178312,189.33,189.3,0.67]
[1760875842609,0.66025776,189.32,189.28,61.4]
[1760875842809,5.94108901,189.36,189.29,11.54647521]
[1760875843022,5.28097072,189.36,189.3,0.67]
[1760875844124,5.28097072,189.36,189.3,5.95253197]
[1760875844325,5.28097072,189.36,189.31,0.69]
[1760875844527,5.28097072,189.36,189.32,0.69]
[1760875844732,5.28097072,189.36,189.32,62.09]
[1760875844929,0.66015315,189.35,189.32,61.4]
[1760875845827,0.7,189.34,189.32,61.4]
[1760875846005,23.58,189.33,189.32,61.4]
[1760875846929,5.28206211,189.32,189.27,0.69]
[1760875847113,5.28206211,189.32,189.27,61.4]
[1760875847430,5.28206211,189.32,189.28,0.69]
[1760875848835,5.28206211,189.32,189.29,0.69]
[1760875849226,0.7,189.31,189.26,1e-08]
[1760875849530,22.88,189.29,189.26,1e-08]
[1760875849730,0.66039729,189.28,189.26,1e-08]
[1760875849924,28.28039729,189.28,189.26,1e-08]
[1760875850111,1.36039729,189.28,189.26,1e-08]
[1760875850433,5.98345749,189.27,189.26,1e-08]
[1760875851132,32.90345749,189.27,189.26,1e-08]
[1760875851315,5.98345749,189.27,189.26,1e-08]
[1760875852021,32.90345749,189.27,189.26,1e-08]
[1760875852532,5.98345749,189.27,189.26,1e-08]
[1760875852735,32.90345749,189.27,189.26,1e-08]
[1760875852911,5.98345749,189.27,189.26,1e-08]
[1760875853111,32.90345749,189.27,189.26,1e-08]
[1760875853513,5.98345749,189.27,189.26,1e-08]
[1760875853709,10.87647521,189.26,189.25,1e-08]
[1760875853933,0.66046708,189.26,189.25,1e-08]
[1760875854639,28.28046708,189.26,189.25,1e-08]
[1760875855920,32.86420373,189.26,189.25,1e-08]
[1760875857540,33.56420373,189.26,189.25,1e-08]
[1760875859529,32.86420373,189.26,189.25,1e-08]
[1760875860753,33.56420373,189.26,189.25,1e-08]
[1760875861242,6.64420373,189.26,189.25,1e-08]
[1760875861425,33.56420373,189.26,189.25,1e-08]
[1760875865823,32.86420373,189.26,189.25,1e-08]
[1760875866025,33.56420373,189.26,189.25,1e-08]
[1760875867651,44.44067894,189.26,189.25,1e-08]
[1760875868032,34.98324062,189.26,189.25,1e-08]
[1760875868231,33.56420373,189.26,189.25,1e-08]
[1760875870023,32.86420373,189.26,189.25,1e-08]
[1760875874565,5.94420373,189.26,189.25,1e-08]
[1760875874742,32.82420373,189.26,189.25,1e-08]
[1760875876861,33.48420373,189.26,189.25,1e-08]
[1760875877061,44.36067894,189.26,189.25,1e-08]
[1760875877360,28.16429507,189.24,189.23,1e-08]
[1760875877563,10.87647521,189.23,189.22,1e-08]
[1760875877760,38.41647521,189.23,189.22,1e-08]
[1760875877941,40.53596123,189.23,189.22,1e-08]
[1760875880266,22.88,189.2,189.18,0.2]
[1760875880566,22.88,189.2,189.19,1e-08]
[1760875880567,50.42067653,189.2,189.19,1e-08]
[1760875880864,50.42067653,189.2,189.18,0.2]
[1760875880865,51.08067653,189.2,189.17,1e-08]
[1760875881065,11.53647521,189.19,189.17,1e-08]
[1760875881256,11.53722158,189.18,189.17,1e-08]
[1760875881452,12.19722158,189.18,189.17,1e-08]
[1760875882183,17.48319261,189.18,189.17,1e-08]
[1760875882556,48.5044941,189.18,189.17,1e-08]
[1760875882875,21.6244941,189.18,189.17,1e-08]
[1760875883244,48.5044941,189.18,189.17,1e-08]
[1760875883460,88.14927684,189.18,189.13,0.2]
[1760875883651,22.88,189.14,189.13,0.2]
[1760875884161,22.88,189.15,189.13,0.89]
[1760875884360,0.66088611,189.14,189.13,0.89]
[1760875884580,5.94797503,189.14,189.13,0.89]
[1760875885260,32.82797503,189.14,189.13,0.2]
[1760875885450,5.94797503,189.14,189.13,0.2]
[1760875885651,5.94797503,189.14,189.13,0.89]
[1760875885842,32.82797503,189.14,189.13,0.89]
[1760875886061,5.94797503,189.14,189.13,0.89]
[1760875886484,32.82797503,189.14,189.13,0.89]
[1760875886683,5.94797503,189.14,189.13,0.89]
[1760875887986,32.82797503,189.14,189.13,0.89]
[1760875889161,5.94797503,189.14,189.13,0.89]
[1760875889981,32.82797503,189.14,189.13,0.89]
[1760875890191,5.94797503,189.14,189.13,0.89]
[1760875890362,5.9476769,189.15,189.13,0.89]
[1760875890894,28.16708892,189.14,189.13,0.89]
[1760875891186,55.04708892,189.14,189.13,0.89]
[1760875891360,28.16708892,189.14,189.13,0.89]
[1760875891555,55.04708892,189.14,189.13,0.89]
[1760875891760,55.04708892,189.14,189.13,0.2]
[1760875891961,28.16708892,189.14,189.13,0.2]
[1760875892375,55.04708892,189.14,189.13,0.2]
[1760875892887,28.16708892,189.14,189.13,0.2]
[1760875893081,28.82708892,189.14,189.13,1e-08]
[1760875893283,68.70394897,189.14,189.13,1e-08]
[1760875893781,41.82394897,189.14,189.13,1e-08]
[1760875893965,22.88,189.11,189.1,0.1]
[1760875894286,23.54099095,189.11,189.1,0.1]
[1760875894472,50.42099095,189.11,189.1,0.1]
[1760875894661,50.42099095,189.11,189.1,0.79]